fUST/lending_fUST_20250624
["ID","MTS","AMOUNT","RATE_DAILY","PERIOD"]
[367192022,1750697451284,-460.0,0.00021094,2]
[367192023,1750697451294,-460.0,0.00021094,2]
[367192024,1750697451304,-460.0,0.00021094,2]
[367192025,1750697451314,-460.0,0.00021094,2]
[367192026,1750697451323,-460.0,0.00021094,2]
[367192027,1750697451333,-460.0,0.00021094,2]
[367192028,1750697451342,-699.97,0.00021094,2]
[367192029,1750697451352,-460.0,0.00021094,2]
[367192030,1750697451364,-984.08,0.00021094,2]
[367192031,1750697451374,-2304.0,0.00021094,2]
[367192032,1750697451383,-845.92,0.00021094,2]
[367192033,1750697451393,-773.26,0.00021094,2]
[367192034,1750697451403,-3459.6,0.00021094,2]
[367192035,1750697451412,-460.0,0.00021094,2]
[367192036,1750697451422,-460.0,0.00021094,2]
[367192037,1750697451432,-460.0,0.00021094,2]
[367192038,1750697451441,-573.77,0.00021094,2]
[367192039,1750697451452,-460.0,0.00021094,2]
[367192040,1750697451461,-460.0,0.00021094,2]
[367192041,1750697451471,-532.82,0.00021094,2]
[367192042,1750697451480,-460.0,0.00021094,2]
[367192043,1750697451489,-1283.0,0.00021094,2]
[367192044,1750697451499,-788.52,0.00021094,2]
[367192045,1750697451509,-5163.31,0.00021094,2]
[367192046,1750697451519,-500.0,0.00021094,2]
[367192047,1750697451529,-500.0,0.00021094,2]
[367192048,1750697451538,-500.0,0.00021094,2]
[367192049,1750697451548,-379.19,0.00021094,2]
[367192050,1750697451558,-1680.77,0.00021094,2]
[367192051,1750697451568,-587.82,0.00021094,2]
[367192052,1750697451578,-12520.38,0.00021094,2]
[367192053,1750697451588,-970.2,0.00021094,2]
[367192054,1750697451597,-1785.46,0.00021094,2]
[367192055,1750697451610,-4776.5,0.00021094,2]
[367192056,1750697451619,-1188.31,0.00021094,2]
[367192057,1750697451629,-1838.21,0.00021094,2]
[367192058,1750697451639,-460.0,0.00021094,2]
[367192059,1750697451648,-460.0,0.00021095,2]
[367192060,1750697451658,-614.46,0.00021095,2]
[367192061,1750697451667,-378.55993075,0.00021095,2]
[367192062,1750697451677,-460.0,0.00021095,2]
[367192063,1750697451686,-460.0,0.00021095,2]
[367192064,1750697451695,-617.88,0.00021095,2]
[367192065,1750697451705,-1431.97,0.00021095,2]
[367192066,1750697451715,-460.0,0.00021095,2]
[367192067,1750697451724,-460.0,0.00021095,2]
[367192068,1750697451734,-460.0,0.00021095,2]
[367192069,1750697451744,-909.95,0.00021095,2]
[367192070,1750697451754,-460.0,0.00021095,2]
[367192071,1750697451764,-526.76,0.00021095,2]
[367192072,1750697451773,-460.0,0.00021095,2]
[367192073,1750697451783,-780.77,0.00021095,2]
[367192074,1750697451793,-460.0,0.00021095,2]
[367192075,1750697451802,-460.0,0.00021095,2]
[367192076,1750697451812,-460.0,0.00021095,2]
[367192077,1750697451822,-600.2820739,0.00021095,2]
[367192078,1750697451831,-495.61,0.00021095,2]
[367192079,1750697451841,-460.0,0.00021095,2]
[367192080,1750697451850,-460.0,0.00021095,2]
[367192081,1750697451862,-460.0,0.00021095,2]
[367192082,1750697451871,-460.0,0.00021095,2]
[367192083,1750697451880,-460.0,0.00021095,2]
[367192084,1750697451889,-460.0,0.00021095,2]
[367192085,1750697451899,-651.77,0.00021095,2]
[367192086,1750697451908,-585.51,0.00021095,2]
[367192087,1750697451917,-178.97022003,0.00021095,2]
[367192088,1750697451926,-460.0,0.00021095,2]
[367192089,1750697451936,-460.0,0.00021095,2]
[367192090,1750697451945,-460.0,0.00021095,2]
[367192091,1750697451954,-460.0,0.00021095,2]
[367192092,1750697451963,-460.0,0.00021095,2]
[367192093,1750697451972,-460.0,0.00021095,2]
[367192094,1750697451982,-460.0,0.00021095,2]
[367192095,1750697451991,-2845.44,0.00021095,2]
[367192096,1750697452001,-500.0,0.00021095,2]
[367192097,1750697452010,-460.0,0.00021095,2]
[367192098,1750697452019,-806.82,0.00021095,2]
[367192099,1750697452030,-460.0,0.00021095,2]
[367192100,1750697452039,-662.46,0.00021095,2]
[367192101,1750697452048,-1029.25,0.00021095,2]
[367192102,1750697452058,-1895.61,0.00021095,2]
[367192103,1750697452067,-460.0,0.00021095,2]
[367192104,1750697452076,-1073.31,0.00021095,2]
[367192105,1750697452085,-1897.12,0.00021095,2]
[367192106,1750697452095,-460.0,0.00021095,2]
[367192107,1750697452104,-1134.25,0.00021095,2]
[367192108,1750697452117,-599.62163273,0.00021095,2]
[367192109,1750697452126,-460.0,0.00021095,2]
[367192110,1750697452136,-267.17515498,0.00021095,2]
[367192111,1750697452146,-991.59,0.00021095,2]
[367192112,1750697452155,-460.0,0.00021095,2]
[367192113,1750697452164,-460.0,0.00021095,2]
[367192114,1750697452174,-460.0,0.00021095,2]
[367192115,1750697452183,-588.15,0.00021095,2]
[367192116,1750697452193,-460.0,0.00021095,2]
[367192117,1750697452204,-460.0,0.00021095,2]
[367192118,1750697452213,-460.0,0.00021095,2]
[367192119,1750697452223,-460.0,0.00021095,2]
[367192120,1750697452233,-460.0,0.00021095,2]
[367192121,1750697452243,-460.0,0.00021095,2]
[367192122,1750697452252,-460.0,0.00021095,2]
[367192123,1750697452262,-460.0,0.00021095,2]
[367192124,1750697452275,-460.0,0.00021095,2]
[367192125,1750697452284,-870.3,0.00021095,2]
[367192126,1750697452294,-510.67,0.00021095,2]
[367192127,1750697452303,-1318.26,0.00021095,2]
[367192128,1750697452313,-460.0,0.00021095,2]
[367192129,1750697452323,-500.0,0.00021095,8]
[367192130,1750697452332,-460.0,0.00021095,2]
[367192131,1750697452341,-807.85,0.00021095,2]
[367192132,1750697452350,-460.0,0.00021095,2]
[367192133,1750697452362,-460.0,0.00021095,2]
[367192134,1750697452372,-460.0,0.00021095,2]
[367192135,1750697452381,-523.74,0.00021095,2]
[367192136,1750697452391,-460.0,0.00021095,2]
[367192137,1750697452400,-460.0,0.00021095,2]
[367192138,1750697452410,-480.9,0.00021095,2]
[367192139,1750697452419,-460.0,0.00021095,2]
[367192140,1750697452429,-460.0,0.00021095,2]
[367192141,1750697452438,-460.0,0.00021095,2]
[367192142,1750697452448,-709.92,0.00021095,2]
[367192143,1750697452457,-460.0,0.00021095,2]
[367192144,1750697452467,-460.0,0.00021095,2]
[367192145,1750697452477,-926.56,0.00021095,2]
[367192146,1750697452486,-1047.54,0.00021095,2]
[367192147,1750697452496,-460.0,0.00021095,2]
[367192148,1750697452505,-814.8,0.00021095,2]
[367192149,1750697452515,-460.0,0.00021095,2]
[367192150,1750697452524,-5076.91,0.00021095,2]
[367192151,1750697452534,-460.0,0.00021095,2]
[367192152,1750697452543,-460.0,0.00021095,2]
[367192153,1750697452553,-490.6203728,0.00021095,2]
[367192154,1750697452563,-460.0,0.00021095,2]
[367192155,1750697452572,-639.64,0.00021095,2]
[367192156,1750697452582,-358.75539916,0.00021095,2]
[367192157,1750697452592,-1458.11,0.00021095,2]
[367192158,1750697452601,-1180.24,0.00021095,2]
[367192159,1750697452614,-721.42,0.00021095,2]
[367192160,1750697452623,-322.78290718,0.00021095,2]
[367192161,1750697452633,-3757.48,0.00021095,2]
[367192162,1750697452643,-460.0,0.00021095,2]
[367192163,1750697452652,-215.83619628,0.00021095,2]
[367192164,1750697452661,-799.52,0.00021095,2]
[367192165,1750697452670,-1092.87,0.00021095,2]
[367192166,1750697452680,-460.0,0.00021095,2]
[367192167,1750697452689,-460.0,0.00021095,2]
[367192168,1750697452698,-460.0,0.00021095,2]
[367192169,1750697452708,-460.0,0.00021095,2]
[367192170,1750697452717,-863.84,0.00021095,2]
[367192171,1750697452727,-460.0,0.00021095,2]
[367192172,1750697452736,-460.0,0.00021095,2]
[367192173,1750697452745,-460.0,0.00021095,2]
[367192174,1750697452755,-1023.23,0.00021095,2]
[367192175,1750697452764,-815.28,0.00021095,2]
[367192176,1750697452774,-460.0,0.00021095,2]
[367192177,1750697452783,-485.2,0.00021095,2]
[367192178,1750697452794,-460.0,0.00021095,2]
[367192179,1750697452803,-460.18,0.00021095,2]
[367192180,1750697452812,-460.0,0.00021095,2]
[367192181,1750697452821,-460.0,0.00021095,2]
[367192182,1750697452831,-460.0,0.00021095,2]
[367192183,1750697452840,-644.42,0.00021095,2]
[367192184,1750697452849,-460.0,0.00021095,2]
[367192185,1750697452860,-460.0,0.00021095,2]
[367192186,1750697452870,-1098.44,0.00021095,2]
[367192187,1750697452879,-460.0,0.00021095,2]
[367192188,1750697452888,-500.0,0.00021095,2]
[367192189,1750697452898,-749.34,0.00021095,2]
[367192190,1750697452908,-460.0,0.00021095,2]
[367192191,1750697452917,-460.0,0.00021095,2]
[367192192,1750697452927,-1000.0,0.00021121,2]
[367192193,1750697452937,-1000.0,0.00021121,2]
[367192194,1750697452946,-1000.0,0.00021121,2]
[367192195,1750697452956,-1000.0,0.00021121,2]
[367192196,1750697452966,-1000.0,0.00021121,2]
[367192197,1750697452975,-1000.0,0.00021121,2]
[367192198,1750697452984,-1000.0,0.00021121,2]
[367192199,1750697452994,-1000.0,0.00021121,2]
[367192200,1750697453004,-1000.0,0.00021121,2]
[367192201,1750697453014,-500.0,0.00021121,2]
[367192202,1750697453024,-1000.0,0.00021121,2]
[367192203,1750697453035,-1005.19550113,0.00021121,2]
[367192204,1750697453044,-297.82184225,0.00021121,2]
[367192205,1750697453053,-1000.0,0.00021121,2]
[367192206,1750697453063,-1000.0,0.00021121,2]
[367192207,1750697453072,-1000.0,0.00021121,2]
[367192208,1750697453082,-3803.99525782,0.00021171,2]
[367192209,1750697453092,-500.0,0.00021182,2]
[367192210,1750697453101,-500.0,0.00021182,2]
[367192211,1750697453112,-500.0,0.00021182,2]
[367192212,1750697453121,-505.60203517,0.00021189,2]
[367192213,1750697453131,-500.0,0.00021189,2]
[367192214,1750697453140,-500.0,0.00021189,2]
[367192215,1750697453150,-500.33125713,0.00021233,2]
[367192216,1750697453159,-500.0,0.00021233,2]
[367192217,1750697453169,-502.2469423,0.00021253,2]
[367192218,1750697453178,-805.9,0.00021254,2]
[367192219,1750697453187,-460.0,0.00021254,2]
[367192220,1750697453199,-618.81,0.00021254,2]
[367192221,1750697453208,-473.78,0.00021254,2]
[367192222,1750697453217,-460.0,0.00021254,2]
[367192223,1750697453227,-664.37,0.00021254,2]
[367192224,1750697453236,-460.0,0.00021254,2]
[367192225,1750697453246,-618.48,0.00021254,2]
[367192226,1750697453256,-730.09,0.00021254,2]
[367192227,1750697453266,-924.89,0.00021254,2]
[367192228,1750697453277,-742.52,0.00021255,2]
[367192229,1750697453287,-460.0,0.00021255,2]
[367192230,1750697453296,-767.77,0.00021255,2]
[367192231,1750697453306,-460.0,0.00021255,2]
[367192232,1750697453315,-460.0,0.00021255,2]
[367192233,1750697453325,-460.0,0.00021255,2]
[367192234,1750697453334,-3331.18,0.00021255,2]
[367192235,1750697453343,-597.17,0.00021255,2]
[367192236,1750697453353,-1808.96,0.00021255,2]
[367192237,1750697453364,-522.83,0.00021255,2]
[367192238,1750697453374,-993.39,0.00021255,2]
[367192239,1750697453383,-460.0,0.00021255,2]
[367192240,1750697453393,-460.0,0.00021255,2]
[367192241,1750697453403,-460.0,0.00021255,2]
[367192242,1750697453414,-1938.6,0.00021255,2]
[367192243,1750697453424,-4171.75,0.00021255,2]
[367192244,1750697453434,-460.0,0.00021255,2]
[367192245,1750697453445,-798.39,0.00021255,2]
[367192246,1750697453455,-662.12,0.00021255,2]
[367192247,1750697453464,-644.67,0.00021255,2]
[367192248,1750697453474,-1922.25,0.00021255,2]
[367192249,1750697453484,-500.56,0.00021255,2]
[367192250,1750697453493,-460.0,0.00021255,2]
[367192251,1750697453502,-1338.64,0.00021255,2]
[367192252,1750697453511,-2510.12,0.00021255,2]
[367192253,1750697453520,-460.0,0.00021255,2]
[367192254,1750697453530,-1996.8,0.00021255,2]
[367192255,1750697453539,-460.0,0.00021255,2]
[367192256,1750697453549,-945.39,0.00021255,2]
[367192257,1750697453558,-4607.43,0.00021255,2]
[367192258,1750697453567,-460.0,0.00021255,2]
[367192259,1750697453576,-607.26,0.00021255,2]
[367192260,1750697453587,-460.0,0.00021255,2]
[367192261,1750697453597,-500.0,0.00021265,2]
[367192262,1750697453607,-500.0,0.00021265,2]
[367192263,1750697453618,-500.0,0.00021265,2]
[367192264,1750697453627,-151.0,0.000213,3]
[367192265,1750697453637,-437.24886619,0.00021308,2]
[367192266,1750697453647,-420.0,0.00021361,2]
[367192267,1750697453657,-248.0,0.00021361,2]
[367192268,1750697453666,-420.0,0.00021361,2]
[367192269,1750697453677,-420.0,0.00021361,2]
[367192270,1750697453687,-420.0,0.00021362,2]
[367192271,1750697453698,-460.0,0.00021367,2]
[367192272,1750697453708,-460.0,0.00021367,2]
[367192273,1750697453718,-460.0,0.00021367,2]
[367192274,1750697453728,-460.0,0.00021367,2]
[367192275,1750697453738,-460.0,0.00021367,2]
[367192276,1750697453747,-404.84787253,0.00021367,2]
[367192277,1750697453756,-460.0,0.00021367,2]
[367192278,1750697453767,-524.08,0.00021367,2]
[367192279,1750697453777,-768.34,0.00021367,2]
[367192280,1750697453786,-768.34,0.00021367,2]
[367192281,1750697453796,-460.0,0.00021367,2]
[367192282,1750697453805,-462.01,0.00021367,2]
[367192283,1750697453815,-1080.4,0.00021367,2]
[367192284,1750697453824,-460.0,0.00021367,2]
[367192285,1750697453834,-523.6,0.00021367,2]
[367192286,1750697453843,-460.0,0.00021367,2]
[367192287,1750697453853,-666.99,0.00021367,2]
[367192288,1750697453864,-550.0,0.00021367,2]
[367192289,1750697453873,-481.60211631,0.00021367,2]
[367192290,1750697453883,-460.0,0.00021367,2]
[367192291,1750697453893,-649.66,0.00021367,2]
[367192292,1750697453902,-460.0,0.00021367,2]
[367192293,1750697453911,-577.48,0.00021367,2]
[367192294,1750697453921,-460.0,0.00021367,2]
[367192295,1750697454092,-460.0,0.00021367,2]
[367192296,1750697454103,-330.77784245,0.00021367,2]
[367192297,1750697454114,-834.68,0.00021367,2]
[367192298,1750697454124,-460.0,0.00021367,2]
[367192299,1750697454133,-803.94,0.00021367,2]
[367192300,1750697454143,-941.33,0.00021367,2]
[367192301,1750697454153,-460.0,0.00021367,2]
[367192302,1750697454163,-356.45344417,0.00021367,2]
[367192303,1750697454173,-463.65,0.00021367,2]
[367192304,1750697454182,-460.0,0.00021367,2]
[367192305,1750697454192,-734.18,0.00021367,2]
[367192306,1750697454205,-460.0,0.00021367,2]
[367192307,1750697454215,-460.0,0.00021367,2]
[367192308,1750697454225,-460.0,0.00021367,2]
[367192309,1750697454237,-632.86,0.00021367,2]
[367192310,1750697454246,-460.0,0.00021367,2]
[367192311,1750697454256,-460.0,0.00021367,2]
[367192312,1750697454267,-460.0,0.00021367,2]
[367192313,1750697454280,-783.14,0.00021367,2]
[367192314,1750697454291,-586.65,0.00021367,2]
[367192315,1750697454301,-460.0,0.00021367,2]
[367192316,1750697454311,-1907.71,0.00021367,2]
[367192317,1750697454321,-691.12,0.00021367,2]
[367192318,1750697454330,-460.0,0.00021367,2]
[367192319,1750697454339,-460.0,0.00021367,2]
[367192320,1750697454349,-462.32,0.00021367,2]
[367192321,1750697454358,-305.65780778,0.00021367,2]
[367192322,1750697454370,-460.0,0.00021367,2]
[367192323,1750697454380,-895.18,0.00021367,2]
[367192324,1750697454390,-460.0,0.00021367,2]
[367192325,1750697454400,-460.0,0.00021367,2]
[367192326,1750697454409,-677.91,0.00021367,2]
[367192327,1750697454418,-460.0,0.00021367,2]
[367192328,1750697454428,-767.32,0.00021367,2]
[367192329,1750697454438,-801.12,0.00021367,2]
[367192330,1750697454448,-984.13,0.00021367,2]
[367192331,1750697454458,-1131.78,0.00021367,2]
[367192332,1750697454468,-2069.55,0.00021367,2]
[367192333,1750697454477,-373.01242811,0.00021367,2]
[367192334,1750697454487,-187.02767425,0.00021367,2]
[367192335,1750697454496,-1331.56,0.00021367,2]
[367192336,1750697454506,-574.96,0.00021367,2]
[367192337,1750697454516,-530.44,0.00021367,2]
[367192338,1750697454526,-460.0,0.00021367,2]
[367192339,1750697454535,-976.96,0.00021367,2]
[367192340,1750697454545,-2037.71,0.00021367,2]
[367192341,1750697454555,-460.0,0.00021367,2]
[367192342,1750697454565,-1166.86,0.00021367,2]
[367192343,1750697454575,-658.74,0.00021367,2]
[367192344,1750697454585,-460.0,0.00021367,2]
[367192345,1750697454594,-460.0,0.00021367,2]
[367192346,1750697454604,-645.9,0.00021367,2]
[367192347,1750697454615,-415.32524298,0.00021367,2]
[367192348,1750697454625,-607.83,0.00021367,2]
[367192349,1750697454634,-460.0,0.00021367,2]
[367192350,1750697454645,-548.66,0.00021367,2]
[367192351,1750697454654,-460.0,0.00021368,2]
[367192352,1750697454664,-764.48,0.00021368,2]
[367192353,1750697454674,-460.0,0.00021368,2]
[367192354,1750697454683,-401.33721209,0.00021368,2]
[367192355,1750697454693,-821.95,0.00021368,2]
[367192356,1750697454703,-616.46,0.00021368,2]
[367192357,1750697454713,-623.62,0.00021368,2]
[367192358,1750697454722,-228.21770751,0.00021368,2]
[367192359,1750697454732,-460.0,0.00021368,2]
[367192360,1750697454742,-460.0,0.00021368,2]
[367192361,1750697454751,-468.54,0.00021368,2]
[367192362,1750697454760,-460.0,0.00021368,2]
[367192363,1750697454769,-460.0,0.00021368,2]
[367192364,1750697454779,-460.0,0.00021368,2]
[367192365,1750697454791,-362.60544658,0.00021368,2]
[367192366,1750697454801,-460.0,0.00021368,2]
[367192367,1750697454811,-460.0,0.00021368,2]
[367192368,1750697454821,-460.0,0.00021368,2]
[367192369,1750697454830,-460.0,0.00021368,2]
[367192370,1750697454840,-601.92215963,0.00021368,2]
[367192371,1750697454850,-699.97,0.00021368,2]
[367192372,1750697454860,-984.08,0.00021368,2]
[367192373,1750697454870,-2304.0,0.00021368,2]
[367192374,1750697454880,-845.92,0.00021368,2]
[367192375,1750697454889,-773.26,0.00021368,2]
[367192376,1750697454898,-3459.6,0.00021368,2]
[367192377,1750697454908,-460.0,0.00021368,2]
[367192378,1750697454917,-460.0,0.00021368,2]
[367192379,1750697454927,-460.0,0.00021368,2]
[367192380,1750697454937,-573.77,0.00021368,2]
[367192381,1750697454947,-460.0,0.00021368,2]
[367192382,1750697454956,-460.0,0.00021368,2]
[367192383,1750697454967,-532.82,0.00021368,2]
[367192384,1750697454976,-460.0,0.00021368,2]
[367192385,1750697454986,-1283.0,0.00021368,2]
[367192386,1750697454995,-788.52,0.00021368,2]
[367192387,1750697455005,-5163.31,0.00021368,2]
[367192388,1750697455015,-1680.77,0.00021368,2]
[367192389,1750697455025,-587.82,0.00021368,2]
[367192390,1750697455035,-12520.38,0.00021368,2]
[367192391,1750697455044,-970.2,0.00021368,2]
[367192392,1750697455054,-1785.46,0.00021368,2]
[367192393,1750697455064,-4776.5,0.00021368,2]
[367192394,1750697455073,-1188.31,0.00021368,2]
[367192395,1750697455083,-1838.21,0.00021368,2]
[367192396,1750697455093,-460.0,0.00021368,2]
[367192397,1750697455103,-614.46,0.00021369,2]
[367192398,1750697455113,-262.14125915,0.00021369,2]
[367192399,1750697455123,-460.0,0.00021369,2]
[367192400,1750697455133,-617.88,0.00021369,2]
[367192401,1750697455142,-1431.97,0.00021369,2]
[367192402,1750697455152,-460.0,0.00021369,2]
[367192403,1750697455161,-460.0,0.00021369,2]
[367192404,1750697455171,-461.85945375,0.00021369,2]
[367192405,1750697455180,-909.95,0.00021369,2]
[367192406,1750697455192,-460.0,0.00021369,2]
[367192407,1750697455203,-526.76,0.00021369,2]
[367192408,1750697455213,-460.0,0.00021369,2]
[367192409,1750697455223,-780.77,0.00021369,2]
[367192410,1750697455233,-460.0,0.00021369,2]
[367192411,1750697455243,-460.0,0.00021369,2]
[367192412,1750697455252,-460.0,0.00021369,2]
[367192413,1750697455262,-495.61,0.00021369,2]
[367192414,1750697455273,-460.0,0.00021369,2]
[367192415,1750697455283,-460.0,0.00021369,2]
[367192416,1750697455293,-460.0,0.00021369,2]
[367192417,1750697455302,-460.0,0.00021369,2]
[367192418,1750697455312,-460.0,0.00021369,2]
[367192419,1750697455322,-651.77,0.00021369,2]
[367192420,1750697455331,-585.51,0.00021369,2]
[367192421,1750697455342,-460.0,0.00021369,2]
[367192422,1750697455351,-460.0,0.00021369,2]
[367192423,1750697455365,-460.0,0.00021369,2]
[367192424,1750697455374,-460.0,0.00021369,2]
[367192425,1750697455385,-460.0,0.00021369,2]
[367192426,1750697455395,-460.0,0.00021369,2]
[367192427,1750697455405,-460.0,0.00021369,2]
[367192428,1750697455415,-2845.44,0.00021369,2]
[367192429,1750697455425,-500.0,0.00021369,2]
[367192430,1750697455434,-460.0,0.00021369,2]
[367192431,1750697455445,-806.82,0.00021369,2]
[367192432,1750697455455,-460.0,0.00021369,2]
[367192433,1750697455465,-662.46,0.00021369,2]
[367192434,1750697455475,-1029.25,0.00021369,2]
[367192435,1750697455485,-1895.61,0.00021369,2]
[367192436,1750697455494,-460.0,0.00021369,2]
[367192437,1750697455504,-1073.31,0.00021369,2]
[367192438,1750697455514,-1897.12,0.00021369,2]
[367192439,1750697455524,-460.0,0.00021369,2]
[367192440,1750697455533,-1134.25,0.00021369,2]
[367192441,1750697455543,-460.0,0.00021369,2]
[367192442,1750697455553,-991.59,0.00021369,2]
[367192443,1750697455562,-364.89427182,0.00021369,2]
[367192444,1750697455571,-460.0,0.00021369,2]
[367192445,1750697455581,-460.0,0.00021369,2]
[367192446,1750697455590,-588.15,0.00021369,2]
[367192447,1750697455600,-460.0,0.00021369,2]
[367192448,1750697455610,-460.0,0.00021369,2]
[367192449,1750697455623,-460.0,0.00021369,2]
[367192450,1750697455632,-460.0,0.00021369,2]
[367192451,1750697455642,-380.0,0.00021369,2]
[367192452,1750697455652,-460.0,0.00021369,2]
[367192453,1750697455662,-870.3,0.00021369,2]
[367192454,1750697455671,-510.67,0.00021369,2]
[367192455,1750697455681,-1318.26,0.00021369,2]
[367192456,1750697455691,-460.0,0.00021369,2]
[367192457,1750697455702,-460.0,0.00021369,2]
[367192458,1750697455712,-807.85,0.00021369,2]
[367192459,1750697455723,-460.0,0.00021369,2]
[367192460,1750697455732,-460.0,0.00021369,2]
[367192461,1750697455742,-460.0,0.00021369,2]
[367192462,1750697455751,-523.74,0.00021369,2]
[367192463,1750697455762,-460.0,0.00021369,2]
[367192464,1750697455771,-460.0,0.00021369,2]
[367192465,1750697455782,-480.9,0.00021369,2]
[367192466,1750697455791,-460.0,0.00021369,2]
[367192467,1750697455801,-460.0,0.00021369,2]
[367192468,1750697455812,-709.92,0.00021369,2]
[367192469,1750697455821,-460.0,0.00021369,2]
[367192470,1750697455831,-460.0,0.00021369,2]
[367192471,1750697455841,-926.56,0.00021369,2]
[367192472,1750697455850,-1047.54,0.00021369,2]
[367192473,1750697455860,-460.0,0.00021369,2]
[367192474,1750697455871,-814.8,0.00021369,2]
[367192475,1750697455881,-460.0,0.00021369,2]
[367192476,1750697455891,-5076.91,0.00021369,2]
[367192477,1750697455900,-460.0,0.00021369,2]
[367192478,1750697455910,-460.0,0.00021369,2]
[367192479,1750697455919,-460.0,0.00021369,2]
[367192480,1750697455929,-639.64,0.00021369,2]
[367192481,1750697455939,-1458.11,0.00021369,2]
[367192482,1750697455951,-1180.24,0.00021369,2]
[367192483,1750697455961,-721.42,0.00021369,2]
[367192484,1750697455971,-3757.48,0.00021369,2]
[367192485,1750697455981,-460.0,0.00021369,2]
[367192486,1750697455991,-799.52,0.00021369,2]
[367192487,1750697456001,-1092.87,0.00021369,2]
[367192488,1750697456011,-460.0,0.00021369,2]
[367192489,1750697456021,-460.0,0.00021369,2]
[367192490,1750697456030,-460.0,0.00021369,2]
[367192491,1750697456040,-460.0,0.00021369,2]
[367192492,1750697456049,-863.84,0.00021369,2]
[367192493,1750697456059,-460.0,0.00021369,2]
[367192494,1750697456068,-460.0,0.00021369,2]
[367192495,1750697456078,-460.0,0.00021369,2]
[367192496,1750697456088,-1023.23,0.00021369,2]
[367192497,1750697456098,-815.28,0.00021369,2]
[367192498,1750697456108,-460.0,0.00021369,2]
[367192499,1750697456119,-485.2,0.00021369,2]
[367192500,1750697456129,-460.0,0.00021369,2]
[367192501,1750697456139,-460.18,0.00021369,2]
[367192502,1750697456148,-460.0,0.00021369,2]
[367192503,1750697456159,-460.0,0.00021369,2]
[367192504,1750697456168,-460.0,0.00021369,2]
[367192505,1750697456178,-644.42,0.00021369,2]
[367192506,1750697456187,-460.0,0.00021369,2]
[367192507,1750697456198,-460.0,0.00021369,2]
[367192508,1750697456208,-1098.44,0.00021369,2]
[367192509,1750697456218,-460.0,0.00021369,2]
[367192510,1750697456228,-500.0,0.00021369,2]
[367192511,1750697456239,-749.34,0.00021369,2]
[367192512,1750697456249,-558.90183119,0.00021369,2]
[367192513,1750697456259,-460.0,0.00021369,2]
[367192514,1750697456269,-151.0,0.000214,3]
[367192515,1750697456279,-3803.99525782,0.00021412,2]
[367192516,1750697456289,-768.65876723,0.00021421,2]
[367192517,1750697456299,-1000.0,0.00021421,2]
[367192518,1750697456309,-1000.0,0.00021421,2]
[367192519,1750697456318,-880.07319711,0.00021421,2]
[367192520,1750697456328,-1000.0,0.00021421,2]
[367192521,1750697456337,-1000.0,0.00021421,2]